Cogmind - Beta 16.1 @@@ ROGUE MODE // 2026.02.11 @ 16:54:36 Player: Ringtail Result: Self-destructed Performance ------------- Evolutions (1) 500 Regions Visited (3) 600 Robots Destroyed (19) 95 Value Destroyed (501) 501 Prototype IDs (3) 60 Alien Tech Used (0) 0 Bonus (200) 200 TOTAL SCORE: 1956 Bonus ------- Pacifist 200 Cogmind --------- Core Integrity 25/400 Matter 300/300 Energy 86/100 System Corruption 0% Temperature Cool (45) Movement Walking (120) Location -9/Storage Parts ------- > --- POWER (2) -------- (None) > --- PROPULSION (2) --- Aluminum Leg Aluminum Leg > --- UTILITY (3) ------ Small Storage Unit Weapon Shielding Drone Bay (1/2) > --- WEAPON (2) ------- Improved Medium Laser > --- INVENTORY (8) ---- ECM Suite Drone Bay (2/2) Drone Bay (0/2) Light Assault Rifle Heavy Assault Rifle Katana Peak State ------------ > --- POWER ------------ (None) > --- PROPULSION ------- Aluminum Leg Aluminum Leg > --- UTILITY ---------- Small Storage Unit Weapon Shielding Drone Bay > --- WEAPON ----------- Improved Medium Laser > --- INVENTORY -------- ECM Suite Drone Bay Drone Bay Light Assault Rifle Heavy Assault Rifle Katana [Rating: 13] Favorites ----------- Power Light Ion Engine Engine Light Ion Engine Propulsion Compact Wheel Leg Aluminum Leg Wheel Compact Wheel Utility Small Storage Unit Device Shield Generator Storage Small Storage Unit Protection Propulsion Shielding Weapon Maul Energy Gun Improved Medium Laser Ballistic Gun Heavy Assault Rifle Launcher Rocket Launcher Impact Weapon Maul Build | -11 -10 -9 -9 ------- Run | Yrd Mat Mat Sto Slots Evolved 2 | . . 2 . Power 1 | . . 1 . Propulsion . | . . . . Utility 1 | . . 1 . Weapon . | . . . . Parts Attached 21 | 6 1 4 10 Power 2 | 1 . 1 . Engine 2 | 1 . 1 . Core . | . . . . Reactor . | . . . . Propulsion 5 | 2 . . 3 Treads . | . . . . Leg 3 | . . . 3 Wheel 2 | 2 . . . Hover . | . . . . Flight . | . . . . Utility 7 | 1 1 1 4 Device 3 | . . . 3 Storage 1 | 1 . . . Processor . | . . . . Hackware . | . . . . Protection 3 | . 1 1 1 Artifact . | . . . . Weapon 7 | 2 . 2 3 Energy Gun 1 | . . . 1 Energy Cannon . | . . . . Ballistic Gun 4 | 2 . 1 1 Ballistic Cannon . | . . . . Launcher 1 | . . . 1 Special Weapon . | . . . . Impact Weapon 1 | . . 1 . Slashing Weapon . | . . . . Piercing Weapon . | . . . . Special Melee Weapon . | . . . . Unidentified Prototypes 1 | . . . 1 Parts Lost 11 | . . 1 10 Power 2 | . . 1 1 Propulsion 3 | . . . 3 Utility 3 | . . . 3 Weapon 3 | . . . 3 Highest Loss Streak 6 | . . 1 6 To Critical Strikes . | . . . . Average Backups 5 | 2 4 4 6 Power . | . 1 . . Propulsion 1 | 1 2 2 1 Utility 1 | . . . 2 Weapon 2 | . 1 2 3 Tool/Special . | . . . . Unused Backups 4 | . . . 4 Power . | . . . . Propulsion . | . . . . Utility 1 | . . . 1 Weapon 3 | . . . 3 Tool/Special . | . . . . Average Slot Usage (%) 76 | . 89 85 66 Engine 8 | . 14 15 3 Leg 3 | . . . 6 Wheel 17 | . 28 22 11 Storage 11 | . 14 11 11 Protection 12 | . 3 14 13 Energy Gun 1 | . . . 2 Ballistic Gun 14 | . 28 16 7 Impact Weapon 5 | . . 5 7 Peak Build Rating 13 | 6 7 10 13 Average Rating 7 | 4 6 8 8 On Entrance 5 | . 6 7 10 Avg Prop Armor Cover (%) 4 | . . . 4 Naked Turns . | . . . . Heaviest Build 18 | 11 12 18 18 Greatest Support 26 | 26 26 26 26 Greatest Overweight (x) 3 | . . . 3 Average Overweight (x) . | . . . . Largest Inventory Capacity 8 | 8 8 8 8 Average Capacity 7 | 6 8 8 8 Most Carried 8 | 5 5 6 8 Average Carried 5 | 3 4 4 6 Final Capacity 8 | 8 8 8 8 Final Carried 6 | 4 5 6 6 Class Distribution -------------------- 100% | Mutant Dominant Class ---------------- Mutant | -10/Materials Mutant | -9/Materials Mutant | -9/Storage Resources | -11 -10 -9 -9 ----------- Run | Yrd Mat Mat Sto Matter Collected 449 | 260 . 40 149 Remotely . | . . . . Salvage Created 556 | . . 168 388 Parts 25 | . . 9 16 Haulers Intercepted 1 | . . . 1 Recyclers Shooed . | . . . . Parts Field Recycled . | . . . . Retrieved Matter . | . . . . Parts Self-Destructed . | . . . . Prevented . | . . . . Parts Restored . | . . . . Kills | -11 -10 -9 -9 ------- Run | Yrd Mat Mat Sto Combat Hostiles Destroyed 16 | . . 6 10 Melee 1 | . . . 1 Guns 7 | . . 3 4 AOE 2 | . . . 2 Classes Destroyed 6 | . . 3 3 Hauler 1 | . . . 1 Watcher 2 | . . . 2 Swarmer 6 | . . 3 3 Grunt 5 | . . 1 4 Duelist 1 | . . . 1 Sentry 4 | . . 2 2 Best Kill Streak 3 | . . 2 3 Combat Bots Only 3 | . . 2 3 Max Kills in Single Turn 2 | . . 1 2 Gunslinging . | . . . . Exploded 2 | . . . 2 Melee 1 | . . . 1 Uniques/NPCs Destroyed . | . . . . Combat | -11 -10 -9 -9 -------- Run | Yrd Mat Mat Sto Hostile Shots Fired 183 | . . 40 143 Missed 65 | . . 13 52 Hits 118 | . . 27 91 Melee 1 | . . . 1 Projectile 117 | . . 27 90 Critical Strikes 7 | . . 1 6 Actively Blocked 3 | . . . 3 Damage Taken 1523 | . . 291 1232 Core 375 | . . 45 330 Absorbed by Shields 19 | . . . 19 Redirected to Shielding 57 | . . 10 47 Core Remaining (%) 100 | 100 100 . . Volleys Fired 36 | . 5 10 21 Largest 2 | . 2 2 1 Hottest 56 | . 40 40 56 Shots Fired 51 | . 10 20 21 Gun 49 | . 10 20 19 Cannon . | . . . . Launcher 2 | . . . 2 Special . | . . . . Kinetic 34 | . 10 20 4 Thermal 15 | . . . 15 Explosive 2 | . . . 2 Electromagnetic . | . . . . Robot Hit Streak 11 | . 3 3 11 Robot Miss Streak 5 | . 5 4 3 Penetration Max . | . . . . Secondary Targets 2 | . . 2 . Max Gunslinging Chain 1 | . . 1 . Shots Hit Robots 55 | . 4 17 34 Core Hits 13 | . 1 3 9 Critical Kills . | . . . . Critical Parts Destroyed 6 | . . 2 4 Critical Strikes 11 | . . 2 9 Burn 4 | . . . 4 Smash 7 | . . 2 5 Melee Attacks 28 | . . 8 20 Impact 28 | . . 8 20 Slashing . | . . . . Piercing . | . . . . Sneak Attacks 2 | . . . 2 Combat Hostiles . | . . . . Follow-up Attacks . | . . . . Damage Inflicted 1490 | . 46 333 1111 Guns 456 | . 46 124 286 Cannons . | . . . . Explosions 133 | . . . 133 Melee 901 | . . 209 692 Ramming . | . . . . Kinetic 217 | . 46 124 47 Thermal 239 | . . . 239 Explosive 133 | . . . 133 Electromagnetic . | . . . . Impact 901 | . . 209 692 Slashing . | . . . . Piercing . | . . . . Highest Corruption . | . . . . Average Corruption . | . . . . Corruption Purged . | . . . . Corruption Blocked . | . . . . Overload Shots . | . . . . Overflow Damage 259 | . . 76 183 Projectiles . | . . . . Explosions 20 | . . . 20 Melee 239 | . . 76 163 Knockbacks . | . . . . Impact . | . . . . Kinetic . | . . . . Secondary . | . . . . Self-Inflicted Damage . | . . . . Shots . | . . . . Rammed . | . . . . Targets Rammed . | . . . . Kicked . | . . . . Crushed . | . . . . Highest Temperature 45 | . . 8 45 Average Temperature 11 | . . 3 17 Received Heat Transfer 505 | . . 69 436 Siege Activations . | . . . . Martial Activations . | . . . . Shielding Activations . | . . . . Robots Disrupted . | . . . . Combat Hostiles . | . . . . Robots Corrupted 7 | . . 3 4 Combat Hostiles 5 | . . 3 2 Parts Fried 9 | . . 3 6 Impact Corruptions 12 | . . 4 8 Robots Melted 1 | . . . 1 Combat Hostiles 1 | . . . 1 Parts Melted 2 | . . . 2 Heat Transferred 814 | . . . 814 Parts Sabotaged . | . . . . Parts Stolen . | . . . . Parts Stripped . | . . . . Power Chain Reactions . | . . . . Alert | -11 -10 -9 -9 ------- Run | Yrd Mat Mat Sto Maximum Alert Level . | . . . . Low Security (%) 100 | 100 100 100 100 Level 1 . | . . . . Level 2 . | . . . . Level 3 . | . . . . Level 4 . | . . . . Level 5 . | . . . . High Security . | . . . . Max Security . | . . . . Peak Influence 109 | . . 109 60 Initial 41 | . . . 41 Average 23 | . . 51 20 Influence Increases 506 | . . 199 307 Destroy 0b10 Robot/C 320 | . . 120 200 Destroy 0b10 Robot/NC 15 | . . . 15 Destroy Leader 76 | . . 30 46 Successful Hack 12 | . . 4 8 Disable Machine 15 | . . . 15 Destroy Structure 8 | . . . 8 Lose Combat Pursuer 60 | . . 45 15 Influence Decreases 476 | . . 100 376 Entered New Map 58 | . . . 58 Time Decay 288 | . . 90 198 Lost Part 110 | . . 10 100 Lost Ally 20 | . . . 20 Squads Dispatched 1 | . 1 . . Investigation 1 | . 1 . . Extermination . | . . . . Reinforcement . | . . . . Assault . | . . . . Garrison . | . . . . Intercept . | . . . . Searches Triggered . | . . . . Construction Impeded . | . . . . Haulers Reinforced . | . . . . Active Scanning Responses . | . . . . Cargo Convoy Interrupts . | . . . . Stealth | -11 -10 -9 -9 --------- Run | Yrd Mat Mat Sto Distress Signals 3 | . 1 . 2 Communications Jammed . | . . . . Distress Signals . | . . . . Times Spotted 32 | . 5 8 19 Peak Tracking Total 8 | . 3 8 8 Tactical Retreats 3 | . . 2 1 Traps | -11 -10 -9 -9 ------- Run | Yrd Mat Mat Sto Traps Triggered . | . . . . Indirectly . | . . . . Trap Hack Attempts . | . . . . Triggered . | . . . . Disarmed . | . . . . Reprogrammed . | . . . . Reused . | . . . . Traps Extracted . | . . . . Installed . | . . . . Triggered . | . . . . Machines | -11 -10 -9 -9 ---------- Run | Yrd Mat Mat Sto Machines Disabled 1 | . . . 1 Max in Single Turn 1 | . . . 1 Machines Repaired . | . . . . Machines Dismantled . | . . . . Machines Sabotaged . | . . . . Overloaded Fab Kills . | . . . . Hacking | -11 -10 -9 -9 --------- Run | Yrd Mat Mat Sto Machines Accessed 10 | . 2 1 7 Terminals 9 | . 2 1 6 Fabricators . | . . . . Repair Stations . | . . . . Recycling Units 1 | . . . 1 Scanalyzers . | . . . . Garrison Access . | . . . . Total Hacks 20 | . 4 2 14 Successful 9 | . 2 1 6 Failed 11 | . 2 1 8 Catastrophic 1 | . . . 1 Database Lockouts . | . . . . Manual . | . . . . Terminals 19 | . 4 2 13 Fabricators . | . . . . Repair Stations . | . . . . Recycling Units 1 | . . . 1 Scanalyzers . | . . . . Garrison Access . | . . . . Terminal Hacks 8 | . 2 1 5 Part Schematic 1 | . . . 1 Prototype ID Bank 1 | . . . 1 Open Door 1 | . . . 1 Emergency Access Points 1 | . . 1 . Dispatch Records 1 | . 1 . . Maintenance Status 1 | . . . 1 Recall Reinforcements 1 | . . . 1 Hauler Manifests 1 | . 1 . . Fabricator Hacks . | . . . . Repair Station Hacks . | . . . . Recycling Unit Hacks 1 | . . . 1 Report Inventory 1 | . . . 1 Scanalyzer . | . . . . Garrison Access Hacks . | . . . . Unauthorized Hacks . | . . . . Terminals . | . . . . Fabricators . | . . . . Repair Stations . | . . . . Recycling Units . | . . . . Scanalyzers . | . . . . Garrison Access . | . . . . Data Cores Recovered . | . . . . Used . | . . . . Hacking Detections 5 | . 2 1 2 Full Trace Events 1 | . 1 . . Feedback Events . | . . . . Feedback Blocked . | . . . . Robot Schematics Acquired . | . . . . Robots Built . | . . . . Authchips . | . . . . Time . | . . . . Total Robot Build Rating . | . . . . Part Schematics Acquired 1 | . . . 1 Parts Built . | . . . . Authchips . | . . . . Time . | . . . . Total Part Build Rating . | . . . . Part Studies Acquired . | . . . . Parts Repaired . | . . . . Time . | . . . . Parts Recycled . | . . . . Recycled Matter . | . . . . Retrieved Matter . | . . . . Retrieved Components . | . . . . Parts Scanalyzed . | . . . . Part Schematics Acquired . | . . . . Parts Damaged . | . . . . Bothacking | -11 -10 -9 -9 ------------ Run | Yrd Mat Mat Sto Used RIF Installer . | . . . . Robots Hacked . | . . . . Non-combat . | . . . . Combat . | . . . . Robot Hacks Applied . | . . . . Relay Couplers Released . | . . . . Fabnet Peak Effective % . | . . . . Robots Rewired . | . . . . Allies Hacked . | . . . . Hacks Repelled . | . . . . Allies | -11 -10 -9 -9 -------- Run | Yrd Mat Mat Sto Total Allies . | . . . . Largest Group . | . . . . Highest-Rated Group . | . . . . Highest-Rated Ally . | . . . . Total Orders . | . . . . Ally Attacks . | . . . . Total Damage . | . . . . Kills . | . . . . Allies Corrupted . | . . . . Allies Melted . | . . . . Intel | -11 -10 -9 -9 ------- Run | Yrd Mat Mat Sto Active Infowar (turns) . | . . . . Robot Analysis Total . | . . . . Derelict Logs Recovered . | . . . . Drone Launches 4 | . . . 4 Drone Recoveries 1 | . . . 1 Exploration | -11 -10 -9 -9 ------------- Run | Yrd Mat Mat Sto Turns Passed 937 | 55 167 242 473 Spaces Moved 658 | 53 146 187 272 Core 54 | 19 . . 35 Treads . | . . . . Legs 110 | . . . 110 Wheels 494 | 34 146 187 127 Hover . | . . . . Flight . | . . . . Fastest Speed 50 | 50 90 90 90 Average Speed 103 | 75 90 90 124 Slowest Speed 200 | 90 90 90 200 Overloaded Moves . | . . . . Propulsion Burnouts . | . . . . Robots Hopped . | . . . . Potential Cave-ins . | . . . . Cave-ins Triggered . | . . . . Exploration Rate (%) 24 | 4 30 20 42 Regions Visited 3 Branch Regions 1 Pre-discovered Areas . | . . . . Known Exits Taken . | . . . . Unknown Exits Taken 3 | 1 1 1 . Scrap Searched . | . . . . Spaces Dug . | . . . . Terrain Destroyed 7 | . . . 7 Melee . | . . . . Projectile . | . . . . AOE 7 | . . . 7 Terrain Rammed . | . . . . Walls Destroyed . | . . . . Machines Disabled . | . . . . Actions | -11 -10 -9 -9 --------- Run | Yrd Mat Mat Sto Total 809 | 67 172 226 344 Wait 41 | . 19 13 9 Move 655 | 52 145 186 272 Hop . | . . . . Pick Up 25 | 9 2 4 10 Fast Attach 1 | 1 . . . Attach 16 | 5 1 2 8 Detach . | . . . . Swap 4 | . . 2 2 Drop 3 | . . 1 2 Fire 36 | . 5 10 21 Melee 28 | . . 8 20 Ram . | . . . . Kick . | . . . . Crush . | . . . . Escape Stasis . | . . . . Rewire . | . . . . Trap . | . . . . Miscellaneous . | . . . . Route ------- -11/Scrapyard -10/Materials (discovered 2 exits: *Mat / [*Min]) -9/Materials (discovered 2 exits: [*Min] / *Sto) -9/Storage History --------- Turn | Location | Event 10 | -11/Scrapyard | Discovered new exit (range 16) 56 | -11/Scrapyard | Entered Materials 127 | -10/Materials | Discovered new exit (range 7) 214 | -10/Materials | Discovered new exit (range 3) 223 | -10/Materials | Entered another Materials area 223 | -9/Materials | Evolved 2 slots: Power x1, Utility x1 301 | -9/Materials | Build established: Mutant 414 | -9/Materials | Discovered new exit (range 7) 423 | -9/Materials | Discovered new exit (range 8) 465 | -9/Materials | Entered Storage 665 | -9/Storage | Lost 3 parts (1p1n1u) 799 | -9/Storage | Core integrity fell below 50% 833 | -9/Storage | Lost 6 parts (2n1u3w) 923 | -9/Storage | Core integrity fell below 20% 938 | -9/Storage | Self-destructed Last Messages --------------- >>Open(Door) Sealed Heavy Doors opened. Acquired Drone Bay. Drone released from Drone Bay. You have a new controllable ally. Review and give out orders from the Allies menu (F5). Drone released from Drone Bay. Drone destroyed. Drone released from Drone Bay. Drone retrieved by Drone Bay (no repairs). Y-45 Defender suffers critical hit (Burn). Drone destroyed. Y-45 Defender suffers critical hit (Burn). Y-45 Defender critical meltdown. Imp. Ion Engine melted. Lgt. Treads melted. Acquired 43 matter. Y-45 Defender suffers critical hit (Burn). Critical hit (Burn: +37). Door Terminal disabled. Map ----- +----------------------------------------------------+ | ??????????# """" ##???????# | | ??????????# """" #????????# [[ | | ??????????# """" #????????? """ """ | | ??????????# #????????# """ """% | | ??????????#####/##????????# """ """* | | ??????????????# #?????????# ![ | | ??????????????#!#?????????# = | | ??????????????# ###+##????#########/ | | ??????????????#*## ###### ##### | | ??????????????#% [ | | ??????????????#### ## ### | | ?????????????????## ##????## | | ???#??????#####???# #??????# | | ???# ###### [##### # + | | ???# + """#+####### | | ????### ### ##### # ""?????????# | | ??????# #?#####???# #??????????????# | | ??????# #?????????# #??????????????# | | ??????# #?????????# #??????????????# | | ??????#u#?????????# #??????????????# | | ??????#n#?????????#+#??????????????# | | ??????# #??????????????????????????# | | ??????# #####??????????????????????? | | ??????# YYY ##?????????????????????? | | ??????# #%Y! #?????????????????????? | | ???#+## ###@##?????????????????????? | | ???# ## =!#?????????????????????? | | ???# ^ T#! !#?????????????????????? | | ???# ## !#?????????????????????? | | ???# ^ ## !#?????????????????????? | | ???#+##+######?????????????????????? | | ???????????????????????????????????? | | ???????????????????????????????????? | | ???????????????????????????????????? | | ???????????????????????????????????? | | ???????????????????????????????????? | | ???????????????????????????????????? | | ???????????????????????????????????? | | ???????????????????????????????????? | | ???????????????????????????????????? | | ???????????????????????????????????? | | ???????????????????????????????????? | | ???????????????????????????????????? | | ???????????????????????????????????? | | ???????????????????????????????????? | | ???????????????????????????????????? | | ???????????????????????????????????? | | ???????????????????????????????????? | | ???????????????????????????????????? | | ???????????????????????????????????? | +----------------------------------------------------+ Best States ------------- Heat Dissipation 28 Energy Generation 15 Energy Capacity 150 Matter Stores 300 Matter Capacity 300 Sight Range 16 Terrain Scan Density 10 Armor Coverage 150 Propulsion Shielding 33 Weapon Shielding 33 Evasion (%) 55 Item Schematics ----------------- Gauss Rifle | -9/Storage | Hacked Robot Schematics ------------------ None Fabricated ------------ Nothing Repaired ---------- Nothing Studied --------- None Alien Tech Used ----------------- None Achievements -------------- Overwhelming Challenges ------------ None Game ------ Seed TerrainWeaponRegenerator Manual? 0 Play Time 00:19:31 Cumulative 16.6 hours Start 2026.02.11 @ 16:35:44 End 2026.02.11 @ 16:54:36 Sessions 1 Manual Loads 0 Difficulty Rogue Special Mode None Game No. 32 Rogue 32 Adventurer 0 Explorer 0 Win Type - Total 0 Types 0/0/0/0/0/0/0/0/0/0 Lore% 9 Gallery% 15 Achievement% 10 Wizard Run 0 Options --------- Layout 1 ASCII 0 Keyboard 0 Movement Mouse Keybinds 0 Fullscreen 2 Font 24/Smallcaps Map View 50x35 Zoom Use 0% Tactical HUD 0 Map Filters NONE Filters NONE Steam 1 RUN: 9f696631-c3a9-4d5e-adcd-6b22b2e7c1bc